[Event "FIDE World Rapid Chess Championship 2021"]
[White "Aziz, Husain"]
[Black "Tologontegin, Semetey"]
[WhiteFideId "12100293"]
[BlackFideId "13800574"]
[WhiteElo "2430"]
[BlackElo "2300"]
[Result "1-0"]
[Round "07"]
[TimeControl "900+10"]
[Date "2021.12.27"]
[WhiteClock "0:01:11"]
[BlackClock "0:00:44"]

1. e4 {[%clk 0:15:00]}  c5 {[%clk 0:15:00]} 2. Nf3 {[%clk 0:15:00]}  d6 {[%clk 0:15:00]} 3. Bb5+ {[%clk 0:15:00]}  Nd7 {[%clk 0:15:00]} 4. d4 {[%clk 0:15:00]}  cxd4 {[%clk 0:15:00]} 5. Qxd4 {[%clk 0:15:00]}  a6 {[%clk 0:15:00]} 6. Bxd7+ {[%clk 0:15:00]}  Bxd7 {[%clk 0:15:00]} 7. Nc3 {[%clk 0:15:00]}  e5 {[%clk 0:15:48]} 8. Qd3 {[%clk 0:16:09]}  h6 {[%clk 0:15:48]} 9. O-O {[%clk 0:16:09]}  Rc8 {[%clk 0:15:48]} 10. Rd1 {[%clk 0:16:09]}  Nf6 {[%clk 0:15:48]} 11. a4 {[%clk 0:16:09]}  Be7 {[%clk 0:15:48]} 12. Nd2 {[%clk 0:16:09]}  Qc7 {[%clk 0:15:48]} 13. Nf1 {[%clk 0:16:09]}  O-O {[%clk 0:15:08]} 14. Ne3 {[%clk 0:16:24]}  Be6 {[%clk 0:15:08]} 15. Qe2 {[%clk 0:16:24]}  Qc6 {[%clk 0:13:45]} 16. Qf3 {[%clk 0:14:52]}  Bd8 {[%clk 0:13:45]} 17. a5 {[%clk 0:14:52]}  Qc5 {[%clk 0:05:56]} 18. Nf5 {[%clk 0:13:52]}  Bxf5 {[%clk 0:03:26]} 19. Qxf5 {[%clk 0:13:52]}  Rc6 {[%clk 0:03:26]} 20. Ra4 {[%clk 0:13:52]}  b5 {[%clk 0:02:55]} 21. axb6 {[%clk 0:08:29]}  Qxb6 {[%clk 0:01:02]} 22. Ra3 {[%clk 0:08:29]}  Qc7 {[%clk 0:01:02]} 23. Qf3 {[%clk 0:05:47]}  Qc8 {[%clk 0:01:01]} 24. h3 {[%clk 0:05:47]}  Kh7 {[%clk 0:01:01]} 25. Bd2 {[%clk 0:05:47]}  Bb6 {[%clk 0:01:01]} 26. Na4 {[%clk 0:05:47]}  Ba7 {[%clk 0:01:01]} 27. Rd3 {[%clk 0:03:44]}  Rc4 {[%clk 0:00:56]} 28. b3 {[%clk 0:03:44]}  Rxe4 {[%clk 0:00:56]} 29. Rxd6 {[%clk 0:02:25]}  Rd4 {[%clk 0:00:22]} 30. Rxd4 {[%clk 0:02:25]}  Bxd4 {[%clk 0:00:22]} 31. c3 {[%clk 0:02:25]}  e4 {[%clk 0:00:22]} 32. Qe2 {[%clk 0:02:25]}  Ba7 {[%clk 0:00:22]} 33. c4 {[%clk 0:02:25]}  Qb7 {[%clk 0:00:22]} 34. b4 {[%clk 0:02:25]}  Qc6 {[%clk 0:00:22]} 35. Ra1 {[%clk 0:01:20]}  Bd4 {[%clk 0:00:34]} 36. Bc3 {[%clk 0:01:20]}  Bxc3 {[%clk 0:00:34]} 37. Nxc3 {[%clk 0:01:20]}  Rb8 {[%clk 0:00:34]} 38. Ra4 {[%clk 0:01:20]}  Re8 {[%clk 0:00:34]} 39. c5 {[%clk 0:01:20]}  Re6 {[%clk 0:00:34]} 40. Ra2 {[%clk 0:01:20]}  Qb7 {[%clk 0:00:34]} 41. Qc4 {[%clk 0:01:20]}  g6 {[%clk 0:00:34]} 42. Qd4 {[%clk 0:01:20]}  h5 {[%clk 0:00:34]} 43. Re2 {[%clk 0:01:20]}  Qc6 {[%clk 0:00:20]} 44. Re3 {[%clk 0:01:17]}  Qb7 {[%clk 0:00:20]} 45. f3 {[%clk 0:01:17]}  Qc6 {[%clk 0:00:20]} 46. Nxe4 {[%clk 0:01:17]}  Nxe4 {[%clk 0:00:20]} 47. Rxe4 {[%clk 0:01:17]}  Rxe4 {[%clk 0:00:20]} 48. fxe4 {[%clk 0:01:17]}  Qa4 {[%clk 0:00:20]} 49. Kh2 {[%clk 0:01:17]}  Qc2 {[%clk 0:00:20]} 50. Qd5 {[%clk 0:01:17]}  Qf2 {[%clk 0:00:20]} 51. Qd6 {[%clk 0:00:45]}  Qc2 {[%clk 0:00:34]} 52. c6 {[%clk 0:00:45]}  Qxe4 {[%clk 0:00:34]} 53. c7 {[%clk 0:00:45]}  Qf5 {[%clk 0:00:34]} 54. Qc5 {[%clk 0:00:45]}  Qc8 {[%clk 0:00:34]} 55. Kg1 {[%clk 0:00:45]}  h4 {[%clk 0:00:34]} 56. Kf2 {[%clk 0:00:45]}  g5 {[%clk 0:00:34]} 57. Qxg5 {[%clk 0:00:45]}  Qxc7 {[%clk 0:00:34]} 58. Qxh4+ {[%clk 0:00:45]}  Kg6 {[%clk 0:00:34]} 59. Qg3+ {[%clk 0:00:45]}  Qxg3+ {[%clk 0:00:34]} 60. Kxg3 {[%clk 0:00:45]}  Kf5 {[%clk 0:00:34]} 61. Kf3 {[%clk 0:00:45]}  Kg5 {[%clk 0:00:34]} 62. g3 {[%clk 0:00:45]}  Kf5 {[%clk 0:00:34]} 63. h4 {[%clk 0:00:45]}  f6 {[%clk 0:00:34]} 64. g4+ {[%clk 0:00:45]}  Ke5 {[%clk 0:00:44]} 65. h5 {[%clk 0:01:11]}  f5 {[%clk 0:00:44]} 66. g5 {[%clk 0:01:11]}  Kd5 {[%clk 0:00:44]} 1-0


[Site "http://www.Chess.com"]

[Event "FIDE World Rapid Chess Championship 2021"]
[White "Tang, Andrew"]
[Black "Sankalp, Gupta"]
[WhiteFideId "2059630"]
[BlackFideId "5097010"]
[WhiteElo "2427"]
[BlackElo "2266"]
[Result "0-1"]
[Round "07"]
[TimeControl "900+10"]
[Date "2021.12.27"]
[WhiteClock "0:00:41"]
[BlackClock "0:00:50"]

1. d4 {[%clk 0:15:00]}  d5 {[%clk 0:15:00]} 2. Nf3 {[%clk 0:15:00]}  Nf6 {[%clk 0:15:00]} 3. Bf4 {[%clk 0:15:00]}  c5 {[%clk 0:15:00]} 4. e3 {[%clk 0:15:00]}  e6 {[%clk 0:15:00]} 5. Nbd2 {[%clk 0:15:00]}  Bd6 {[%clk 0:15:00]} 6. c3 {[%clk 0:15:00]}  O-O {[%clk 0:15:51]} 7. Bd3 {[%clk 0:16:07]}  Qc7 {[%clk 0:15:51]} 8. Bxd6 {[%clk 0:16:07]}  Qxd6 {[%clk 0:15:51]} 9. Ne5 {[%clk 0:16:07]}  b6 {[%clk 0:15:51]} 10. O-O {[%clk 0:16:07]}  Ba6 {[%clk 0:15:51]} 11. Bxa6 {[%clk 0:16:07]}  Nxa6 {[%clk 0:15:51]} 12. f4 {[%clk 0:16:07]}  Nc7 {[%clk 0:15:51]} 13. Rf3 {[%clk 0:16:07]}  b5 {[%clk 0:15:37]} 14. Rh3 {[%clk 0:16:35]}  cxd4 {[%clk 0:11:08]} 15. exd4 {[%clk 0:10:55]}  Qd8 {[%clk 0:11:16]} 16. g4 {[%clk 0:09:23]}  Ne4 {[%clk 0:11:16]} 17. Qe1 {[%clk 0:08:26]}  Nxd2 {[%clk 0:08:50]} 18. Qxd2 {[%clk 0:03:24]}  f6 {[%clk 0:08:50]} 19. Nd3 {[%clk 0:03:24]}  g6 {[%clk 0:08:50]} 20. Re1 {[%clk 0:03:24]}  Qd6 {[%clk 0:05:39]} 21. f5 {[%clk 0:02:47]}  exf5 {[%clk 0:05:39]} 22. gxf5 {[%clk 0:02:47]}  g5 {[%clk 0:05:39]} 23. Rhe3 {[%clk 0:02:47]}  Rae8 {[%clk 0:05:39]} 24. Qg2 {[%clk 0:00:57]}  Rxe3 {[%clk 0:05:46]} 25. Rxe3 {[%clk 0:00:57]}  Re8 {[%clk 0:05:46]} 26. Rxe8+ {[%clk 0:00:57]}  Nxe8 {[%clk 0:05:46]} 27. Nb4 {[%clk 0:00:57]}  Nc7 {[%clk 0:05:46]} 28. Qf3 {[%clk 0:00:57]}  a5 {[%clk 0:05:46]} 29. Nd3 {[%clk 0:00:57]}  Ne8 {[%clk 0:05:46]} 30. Nf2 {[%clk 0:00:57]}  Qc6 {[%clk 0:05:46]} 31. Ng4 {[%clk 0:00:57]}  Nc7 {[%clk 0:05:35]} 32. Qe3 {[%clk 0:00:30]}  Qd6 {[%clk 0:05:35]} 33. h4 {[%clk 0:00:30]}  gxh4 {[%clk 0:05:35]} 34. Kg2 {[%clk 0:00:30]}  h5 {[%clk 0:04:09]} 35. Nf2 {[%clk 0:00:36]}  Qd7 {[%clk 0:04:09]} 36. Qf3 {[%clk 0:00:36]}  Qg7+ {[%clk 0:04:09]} 37. Kh3 {[%clk 0:00:36]}  Qg5 {[%clk 0:04:09]} 38. Nd1 {[%clk 0:00:36]}  Kh7 {[%clk 0:04:09]} 39. Ne3 {[%clk 0:00:36]}  Kh6 {[%clk 0:04:09]} 40. Ng2 {[%clk 0:00:36]}  Ne8 {[%clk 0:03:00]} 41. Nxh4 {[%clk 0:00:45]}  Nd6 {[%clk 0:03:00]} 42. b3 {[%clk 0:00:45]}  b4 {[%clk 0:03:00]} 43. cxb4 {[%clk 0:00:45]}  axb4 {[%clk 0:03:00]} 44. Qf2 {[%clk 0:00:45]}  Qg4+ {[%clk 0:03:00]} 45. Kh2 {[%clk 0:00:45]}  Ne4 {[%clk 0:03:00]} 46. Qe3+ {[%clk 0:00:45]}  Kh7 {[%clk 0:03:00]} 47. Ng2 {[%clk 0:00:45]}  Qxf5 {[%clk 0:02:17]} 48. Qf4 {[%clk 0:00:17]}  Qg5 {[%clk 0:02:17]} 49. Qc7+ {[%clk 0:00:17]}  Kh6 {[%clk 0:02:17]} 50. Qb8 {[%clk 0:00:17]}  Kh7 {[%clk 0:02:17]} 51. Qb7+ {[%clk 0:00:17]}  Kg6 {[%clk 0:02:17]} 52. Qb8 {[%clk 0:00:17]}  h4 {[%clk 0:00:50]} 53. Qg8+ {[%clk 0:00:41]}  Kh5 {[%clk 0:00:50]} 54. Qh7+ {[%clk 0:00:41]}  Kg4 {[%clk 0:00:50]} 55. Qh8 {[%clk 0:00:41]}  Kf3 {[%clk 0:00:50]} 56. Ne1+ {[%clk 0:00:41]}  Kf2 {[%clk 0:00:50]} 57. Nd3+ {[%clk 0:00:41]}  Ke3 {[%clk 0:00:50]} 0-1


[Site "http://www.Chess.com"]

[Event "FIDE World Rapid Chess Championship 2021"]
[White "Zilka, Stepan"]
[Black "Klimkowski, Jan"]
[WhiteFideId "315303"]
[BlackFideId "21856222"]
[WhiteElo "2474"]
[BlackElo "2211"]
[Result "0-1"]
[Round "07"]
[TimeControl "900+10"]
[Date "2021.12.27"]
[WhiteClock "0:00:22"]
[BlackClock "0:00:16"]

1. e4 {[%clk 0:15:00]}  c5 {[%clk 0:15:00]} 2. Nf3 {[%clk 0:15:00]}  d6 {[%clk 0:15:00]} 3. d4 {[%clk 0:15:00]}  cxd4 {[%clk 0:15:00]} 4. Nxd4 {[%clk 0:15:00]}  Nf6 {[%clk 0:15:00]} 5. Nc3 {[%clk 0:15:00]}  a6 {[%clk 0:15:00]} 6. Be3 {[%clk 0:15:00]}  e5 {[%clk 0:15:00]} 7. Nb3 {[%clk 0:15:00]}  Be6 {[%clk 0:15:00]} 8. f3 {[%clk 0:15:00]}  h5 {[%clk 0:15:00]} 9. Qd2 {[%clk 0:15:00]}  Nbd7 {[%clk 0:15:00]} 10. Nd5 {[%clk 0:16:02]}  Bxd5 {[%clk 0:16:25]} 11. exd5 {[%clk 0:16:02]}  g6 {[%clk 0:16:25]} 12. Be2 {[%clk 0:16:02]}  b6 {[%clk 0:16:25]} 13. O-O {[%clk 0:16:02]}  Bg7 {[%clk 0:16:25]} 14. c4 {[%clk 0:16:02]}  O-O {[%clk 0:16:25]} 15. Rac1 {[%clk 0:16:02]}  Rc8 {[%clk 0:16:25]} 16. Na1 {[%clk 0:16:02]}  a5 {[%clk 0:16:05]} 17. Nc2 {[%clk 0:15:26]}  h4 {[%clk 0:16:05]} 18. g4 {[%clk 0:15:26]}  Nh7 {[%clk 0:16:05]} 19. Kh1 {[%clk 0:15:26]}  Bf6 {[%clk 0:13:54]} 20. Na3 {[%clk 0:15:05]}  Nc5 {[%clk 0:13:54]} 21. Nb5 {[%clk 0:15:05]}  Qe7 {[%clk 0:12:36]} 22. Rg1 {[%clk 0:14:52]}  Rcd8 {[%clk 0:10:34]} 23. g5 {[%clk 0:12:40]}  Bg7 {[%clk 0:10:34]} 24. Rg4 {[%clk 0:12:40]}  h3 {[%clk 0:10:34]} 25. Rcg1 {[%clk 0:12:40]}  Rfe8 {[%clk 0:10:34]} 26. R1g3 {[%clk 0:12:40]}  Qd7 {[%clk 0:10:34]} 27. Bf1 {[%clk 0:12:43]}  Qf5 {[%clk 0:07:05]} 28. Nc3 {[%clk 0:11:29]}  e4 {[%clk 0:06:06]} 29. f4 {[%clk 0:11:29]}  Nd3 {[%clk 0:04:38]} 30. Rh4 {[%clk 0:09:46]}  Qc8 {[%clk 0:04:38]} 31. b3 {[%clk 0:09:46]}  Qa6 {[%clk 0:04:11]} 32. Nb5 {[%clk 0:08:29]}  Rd7 {[%clk 0:04:11]} 33. Bxh3 {[%clk 0:08:29]}  Rde7 {[%clk 0:04:11]} 34. Nxd6 {[%clk 0:08:29]}  Rd8 {[%clk 0:04:11]} 35. Nb5 {[%clk 0:07:11]}  a4 {[%clk 0:03:05]} 36. d6 {[%clk 0:07:11]}  Ree8 {[%clk 0:03:05]} 37. Nc7 {[%clk 0:07:11]}  Qb7 {[%clk 0:03:05]} 38. Nxe8 {[%clk 0:07:11]}  Rxe8 {[%clk 0:03:05]} 39. b4 {[%clk 0:05:20]}  Qc6 {[%clk 0:03:13]} 40. d7 {[%clk 0:05:20]}  Rd8 {[%clk 0:03:13]} 41. c5 {[%clk 0:05:20]}  bxc5 {[%clk 0:03:13]} 42. bxc5 {[%clk 0:05:20]}  Nf8 {[%clk 0:03:13]} 43. Qa5 {[%clk 0:05:20]}  Rxd7 {[%clk 0:02:25]} 44. Bxd7 {[%clk 0:04:46]}  Qxd7 {[%clk 0:02:25]} 45. Qa8 {[%clk 0:04:46]}  Qb5 {[%clk 0:02:25]} 46. Rg1 {[%clk 0:03:43]}  Qc4 {[%clk 0:01:39]} 47. c6 {[%clk 0:03:43]}  Qd5 {[%clk 0:01:39]} 48. Qxa4 {[%clk 0:03:43]}  Ne6 {[%clk 0:01:39]} 49. Rb1 {[%clk 0:03:43]}  Bf8 {[%clk 0:01:41]} 50. Rb5 {[%clk 0:02:06]}  Qxc6 {[%clk 0:01:41]} 51. Ra5 {[%clk 0:02:06]}  Qc3 {[%clk 0:01:41]} 52. Qxe4 {[%clk 0:02:06]}  Qxa5 {[%clk 0:01:41]} 53. Bg1 {[%clk 0:00:43]}  Qxa2 {[%clk 0:00:31]} 54. Qf3 {[%clk 0:00:43]}  Ndxf4 {[%clk 0:00:31]} 55. h3 {[%clk 0:00:43]}  Nh5 {[%clk 0:00:31]} 56. Rg4 {[%clk 0:00:43]}  Be7 {[%clk 0:00:31]} 57. h4 {[%clk 0:00:43]}  Qa1 {[%clk 0:00:31]} 58. Kg2 {[%clk 0:00:43]}  Qa2+ {[%clk 0:00:31]} 59. Kh3 {[%clk 0:00:43]}  Qd2 {[%clk 0:00:31]} 60. Bh2 {[%clk 0:00:43]}  Bd6 {[%clk 0:00:16]} 61. Qa8+ {[%clk 0:00:22]}  Kg7 {[%clk 0:00:16]} 62. Qa1+ {[%clk 0:00:22]}  Kh7 {[%clk 0:00:16]} 63. Bxd6 {[%clk 0:00:22]}  Qxd6 {[%clk 0:00:16]} 64. Re4 {[%clk 0:00:22]}  Qd3+ {[%clk 0:00:16]} 0-1


[Site "http://www.Chess.com"]

[Event "FIDE World Rapid Chess Championship 2021"]
[White "Postny, Evgeny"]
[Black "Baum, Jonasz"]
[WhiteFideId "2804344"]
[BlackFideId "1195360"]
[WhiteElo "2454"]
[BlackElo "2343"]
[Result "1-0"]
[Round "07"]
[TimeControl "900+10"]
[Date "2021.12.27"]
[WhiteClock "0:05:35"]
[BlackClock "0:01:14"]

1. d4 {[%clk 0:15:00]}  Nf6 {[%clk 0:15:00]} 2. c4 {[%clk 0:15:00]}  e6 {[%clk 0:15:00]} 3. Nf3 {[%clk 0:15:00]}  d5 {[%clk 0:15:00]} 4. g3 {[%clk 0:15:00]}  dxc4 {[%clk 0:15:00]} 5. Bg2 {[%clk 0:15:00]}  a6 {[%clk 0:15:00]} 6. O-O {[%clk 0:15:00]}  Nc6 {[%clk 0:15:00]} 7. Bg5 {[%clk 0:15:00]}  Be7 {[%clk 0:15:00]} 8. e3 {[%clk 0:15:00]}  O-O {[%clk 0:15:00]} 9. Nfd2 {[%clk 0:15:34]}  e5 {[%clk 0:16:09]} 10. Bxf6 {[%clk 0:15:34]}  Bxf6 {[%clk 0:16:09]} 11. d5 {[%clk 0:15:34]}  Na5 {[%clk 0:15:33]} 12. Nc3 {[%clk 0:15:40]}  b5 {[%clk 0:12:41]} 13. b4 {[%clk 0:12:54]}  Nb7 {[%clk 0:10:26]} 14. a4 {[%clk 0:11:58]}  Bd7 {[%clk 0:07:50]} 15. Nde4 {[%clk 0:12:05]}  Be7 {[%clk 0:07:50]} 16. axb5 {[%clk 0:11:41]}  axb5 {[%clk 0:05:03]} 17. Rxa8 {[%clk 0:11:41]}  Qxa8 {[%clk 0:05:03]} 18. d6 {[%clk 0:11:41]}  cxd6 {[%clk 0:03:08]} 19. Nd5 {[%clk 0:07:54]}  Qd8 {[%clk 0:03:08]} 20. Nec3 {[%clk 0:07:54]}  Bg5 {[%clk 0:03:08]} 21. h4 {[%clk 0:07:28]}  Bh6 {[%clk 0:01:05]} 22. Qa1 {[%clk 0:07:28]}  Qb8 {[%clk 0:01:14]} 23. Qa6 {[%clk 0:05:35]}  Nd8 {[%clk 0:01:14]} 24. Ne4 {[%clk 0:05:35]}  Kh8 {[%clk 0:01:14]} 25. Nxd6 {[%clk 0:05:35]}  f5 {[%clk 0:01:14]} 1-0


[Site "http://www.Chess.com"]

[Event "FIDE World Rapid Chess Championship 2021"]
[White "Toczek, Grzegorz"]
[Black "Sadzikowski, Daniel"]
[WhiteFideId "1106457"]
[BlackFideId "1132253"]
[WhiteElo "2220"]
[BlackElo "2414"]
[Result "0-1"]
[Round "07"]
[TimeControl "900+10"]
[Date "2021.12.27"]
[WhiteClock "0:00:46"]
[BlackClock "0:00:33"]

1. e4 {[%clk 0:15:00]}  c5 {[%clk 0:15:00]} 2. c3 {[%clk 0:15:00]}  d5 {[%clk 0:15:00]} 3. exd5 {[%clk 0:15:00]}  Qxd5 {[%clk 0:15:00]} 4. d4 {[%clk 0:15:00]}  Nf6 {[%clk 0:15:00]} 5. Nf3 {[%clk 0:15:00]}  e6 {[%clk 0:15:00]} 6. Na3 {[%clk 0:15:00]}  Nc6 {[%clk 0:15:21]} 7. Nb5 {[%clk 0:15:34]}  Qd8 {[%clk 0:15:21]} 8. dxc5 {[%clk 0:15:34]}  Bxc5 {[%clk 0:15:21]} 9. Qxd8+ {[%clk 0:15:34]}  Kxd8 {[%clk 0:15:21]} 10. Be3 {[%clk 0:15:46]}  Bxe3 {[%clk 0:14:41]} 11. fxe3 {[%clk 0:11:28]}  Ke7 {[%clk 0:14:41]} 12. Bd3 {[%clk 0:11:28]}  Rd8 {[%clk 0:14:41]} 13. Ke2 {[%clk 0:11:19]}  b6 {[%clk 0:12:24]} 14. Nbd4 {[%clk 0:11:21]}  Bb7 {[%clk 0:10:12]} 15. Bb5 {[%clk 0:11:21]}  Rac8 {[%clk 0:10:03]} 16. Nxc6+ {[%clk 0:08:59]}  Bxc6 {[%clk 0:10:03]} 17. Bxc6 {[%clk 0:08:59]}  Rxc6 {[%clk 0:10:03]} 18. Rad1 {[%clk 0:08:59]}  Rxd1 {[%clk 0:10:03]} 19. Rxd1 {[%clk 0:08:59]}  Rc5 {[%clk 0:10:03]} 20. Nd4 {[%clk 0:09:20]}  Ne4 {[%clk 0:09:09]} 21. Kf3 {[%clk 0:09:20]}  f5 {[%clk 0:09:09]} 22. h4 {[%clk 0:09:20]}  Nf6 {[%clk 0:08:22]} 23. Rd2 {[%clk 0:06:59]}  g6 {[%clk 0:08:22]} 24. Nb3 {[%clk 0:06:59]}  Rc8 {[%clk 0:07:00]} 25. Rd4 {[%clk 0:05:54]}  e5 {[%clk 0:07:00]} 26. Ra4 {[%clk 0:05:54]}  Rc7 {[%clk 0:06:21]} 27. Nd2 {[%clk 0:04:50]}  Rd7 {[%clk 0:06:21]} 28. Ke2 {[%clk 0:04:50]}  Nh5 {[%clk 0:06:21]} 29. Nf1 {[%clk 0:04:50]}  Nf6 {[%clk 0:06:21]} 30. Nd2 {[%clk 0:04:50]}  h6 {[%clk 0:03:29]} 31. Rc4 {[%clk 0:05:23]}  Ne8 {[%clk 0:03:29]} 32. Rc8 {[%clk 0:05:23]}  Rc7 {[%clk 0:03:29]} 33. Ra8 {[%clk 0:05:23]}  Nd6 {[%clk 0:02:17]} 34. Rh8 {[%clk 0:04:38]}  Nf7 {[%clk 0:02:17]} 35. Rg8 {[%clk 0:04:38]}  Kf6 {[%clk 0:02:17]} 36. Nf3 {[%clk 0:02:40]}  Rd7 {[%clk 0:02:16]} 37. Nd2 {[%clk 0:02:40]}  Rd8 {[%clk 0:02:16]} 38. Rxd8 {[%clk 0:02:40]}  Nxd8 {[%clk 0:02:16]} 39. e4 {[%clk 0:02:40]}  Ne6 {[%clk 0:02:16]} 40. Kf3 {[%clk 0:02:40]}  Nc5 {[%clk 0:02:16]} 41. exf5 {[%clk 0:02:16]}  gxf5 {[%clk 0:01:29]} 42. g3 {[%clk 0:02:16]}  Na4 {[%clk 0:01:29]} 43. Nc4 {[%clk 0:02:16]}  h5 {[%clk 0:01:29]} 44. Ke3 {[%clk 0:02:16]}  Ke6 {[%clk 0:01:29]} 45. Kd2 {[%clk 0:01:01]}  b5 {[%clk 0:01:02]} 46. Na3 {[%clk 0:01:01]}  a6 {[%clk 0:01:02]} 47. b3 {[%clk 0:01:01]}  Nc5 {[%clk 0:01:02]} 48. c4 {[%clk 0:01:01]}  Ne4+ {[%clk 0:01:02]} 49. Ke3 {[%clk 0:01:01]}  bxc4 {[%clk 0:01:02]} 50. Nxc4 {[%clk 0:01:01]}  Nxg3 {[%clk 0:01:02]} 51. b4 {[%clk 0:01:01]}  Ne4 {[%clk 0:01:02]} 52. a4 {[%clk 0:01:01]}  Nd6 {[%clk 0:01:02]} 53. Nd2 {[%clk 0:00:24]}  f4+ {[%clk 0:00:46]} 54. Kf3 {[%clk 0:00:24]}  Kf5 {[%clk 0:00:46]} 55. Nb3 {[%clk 0:00:24]}  e4+ {[%clk 0:00:46]} 56. Ke2 {[%clk 0:00:24]}  Kg4 {[%clk 0:00:46]} 57. Nc5 {[%clk 0:00:24]}  Kg3 {[%clk 0:00:46]} 58. b5 {[%clk 0:00:24]}  axb5 {[%clk 0:00:46]} 59. axb5 {[%clk 0:00:24]}  f3+ {[%clk 0:00:46]} 60. Kf1 {[%clk 0:00:24]}  e3 {[%clk 0:00:46]} 61. b6 {[%clk 0:00:24]}  e2+ {[%clk 0:00:46]} 62. Ke1 {[%clk 0:00:24]}  f2+ {[%clk 0:00:33]} 63. Kxe2 {[%clk 0:00:46]}  Kg2 {[%clk 0:00:33]} 64. Kd3 {[%clk 0:00:46]} 0-1


[Site "http://www.Chess.com"]

[Event "FIDE World Rapid Chess Championship 2021"]
[White "Peng, Li Min"]
[Black "Lopusiewicz, Piotr"]
[WhiteFideId "14112620"]
[BlackFideId "1116029"]
[WhiteElo "2411"]
[BlackElo "2197"]
[Result "1-0"]
[Round "07"]
[TimeControl "900+10"]
[Date "2021.12.27"]
[WhiteClock "0:01:03"]
[BlackClock "0:00:23"]

1. d4 {[%clk 0:15:00]}  Nf6 {[%clk 0:15:00]} 2. c4 {[%clk 0:15:00]}  e6 {[%clk 0:15:00]} 3. Nc3 {[%clk 0:15:00]}  d5 {[%clk 0:15:00]} 4. cxd5 {[%clk 0:15:00]}  exd5 {[%clk 0:15:00]} 5. Bg5 {[%clk 0:15:00]}  Be7 {[%clk 0:15:00]} 6. e3 {[%clk 0:15:00]}  h6 {[%clk 0:15:00]} 7. Bh4 {[%clk 0:15:00]}  O-O {[%clk 0:15:00]} 8. Qc2 {[%clk 0:15:00]}  c6 {[%clk 0:15:00]} 9. Bd3 {[%clk 0:15:00]}  Nbd7 {[%clk 0:16:00]} 10. Nge2 {[%clk 0:16:39]}  Re8 {[%clk 0:16:00]} 11. O-O {[%clk 0:16:39]}  Nh5 {[%clk 0:16:00]} 12. Bxe7 {[%clk 0:16:39]}  Qxe7 {[%clk 0:16:00]} 13. Rab1 {[%clk 0:16:39]}  a5 {[%clk 0:15:17]} 14. Na4 {[%clk 0:15:55]}  Nhf6 {[%clk 0:13:19]} 15. Ng3 {[%clk 0:15:34]}  g6 {[%clk 0:13:19]} 16. Rbe1 {[%clk 0:15:34]}  Ne4 {[%clk 0:10:55]} 17. Bxe4 {[%clk 0:15:21]}  dxe4 {[%clk 0:10:55]} 18. f3 {[%clk 0:15:21]}  exf3 {[%clk 0:09:29]} 19. Rxf3 {[%clk 0:13:31]}  Nf8 {[%clk 0:07:18]} 20. a3 {[%clk 0:13:34]}  Bg4 {[%clk 0:05:57]} 21. Rf4 {[%clk 0:13:34]}  h5 {[%clk 0:05:41]} 22. h3 {[%clk 0:06:50]}  Ne6 {[%clk 0:04:37]} 23. Rff1 {[%clk 0:05:13]}  h4 {[%clk 0:01:31]} 24. Nh1 {[%clk 0:05:13]}  Bh5 {[%clk 0:00:56]} 25. Nf2 {[%clk 0:02:46]}  g5 {[%clk 0:00:56]} 26. Nb6 {[%clk 0:02:46]}  Rad8 {[%clk 0:00:56]} 27. Qc3 {[%clk 0:02:46]}  Bg6 {[%clk 0:00:56]} 28. Ng4 {[%clk 0:02:46]}  f5 {[%clk 0:00:56]} 29. Ne5 {[%clk 0:02:38]}  Bh7 {[%clk 0:00:19]} 30. Qxa5 {[%clk 0:02:38]}  c5 {[%clk 0:00:19]} 31. Rd1 {[%clk 0:02:38]}  cxd4 {[%clk 0:00:19]} 32. Nd5 {[%clk 0:02:38]}  Rxd5 {[%clk 0:00:19]} 33. Qxd5 {[%clk 0:02:38]}  Rd8 {[%clk 0:00:19]} 34. Qb3 {[%clk 0:01:03]}  Kg7 {[%clk 0:00:23]} 35. Nf3 {[%clk 0:01:03]}  dxe3 {[%clk 0:00:23]} 36. Qxe3 {[%clk 0:01:03]}  Re8 {[%clk 0:00:23]} 37. Qe5+ {[%clk 0:01:03]}  Kg8 {[%clk 0:00:23]} 38. Rfe1 {[%clk 0:01:03]}  Kf8 {[%clk 0:00:23]} 39. Rd6 {[%clk 0:01:03]}  Kf7 {[%clk 0:00:23]} 40. Qxe6+ {[%clk 0:01:03]}  Qxe6 {[%clk 0:00:23]} 41. Nxg5+ {[%clk 0:01:03]} 1-0


[Site "http://www.Chess.com"]

[Event "FIDE World Rapid Chess Championship 2021"]
[White "Yunusov, Mukhammad"]
[Black "Thybo, Jesper Sondergaard"]
[WhiteFideId "14700930"]
[BlackFideId "1438832"]
[WhiteElo "1832"]
[BlackElo "2401"]
[Result "0-1"]
[Round "07"]
[TimeControl "900+10"]
[Date "2021.12.27"]
[WhiteClock "0:00:34"]
[BlackClock "0:05:04"]

1. d4 {[%clk 0:15:00]}  Nf6 {[%clk 0:15:00]} 2. Nf3 {[%clk 0:15:00]}  g6 {[%clk 0:15:00]} 3. Nc3 {[%clk 0:15:00]}  d5 {[%clk 0:15:00]} 4. Bf4 {[%clk 0:15:00]}  Bg7 {[%clk 0:15:10]} 5. Qd2 {[%clk 0:15:09]}  Ne4 {[%clk 0:15:10]} 6. Nxe4 {[%clk 0:15:09]}  dxe4 {[%clk 0:15:10]} 7. Ne5 {[%clk 0:15:09]}  c5 {[%clk 0:15:10]} 8. dxc5 {[%clk 0:14:39]}  Qxd2+ {[%clk 0:13:39]} 9. Kxd2 {[%clk 0:14:39]}  O-O {[%clk 0:13:39]} 10. e3 {[%clk 0:08:02]}  Rd8+ {[%clk 0:12:27]} 11. Ke1 {[%clk 0:02:17]}  f6 {[%clk 0:12:27]} 12. Nc4 {[%clk 0:02:16]}  Na6 {[%clk 0:09:39]} 13. Rd1 {[%clk 0:02:16]}  Be6 {[%clk 0:09:36]} 14. Na3 {[%clk 0:01:11]}  Nxc5 {[%clk 0:09:36]} 15. Rxd8+ {[%clk 0:01:11]}  Rxd8 {[%clk 0:09:36]} 16. Bc4 {[%clk 0:01:11]}  f5 {[%clk 0:06:23]} 17. Bxe6+ {[%clk 0:00:45]}  Nxe6 {[%clk 0:06:23]} 18. c3 {[%clk 0:00:45]}  g5 {[%clk 0:05:04]} 19. Bg3 {[%clk 0:00:34]}  f4 {[%clk 0:05:04]} 20. exf4 {[%clk 0:00:34]}  gxf4 {[%clk 0:05:04]} 21. Bh4 {[%clk 0:00:34]}  f3 {[%clk 0:05:04]} 22. gxf3 {[%clk 0:00:34]}  exf3 {[%clk 0:05:04]} 23. Rg1 {[%clk 0:00:34]}  Nf4 {[%clk 0:05:04]} 0-1


[Site "http://www.Chess.com"]